[Event "Romanian Championship 2024"]
[Site "Eforie Nord"]
[Date "2024.02.28"]
[Round "6.10"]
[White "David, Alexandru-Vasile"]
[Black "Vilcu, Matei-Stefan"]
[Result "1/2-1/2"]
[ECO "B55"]
[WhiteElo "2360"]
[BlackElo "2176"]
[Annotator "TA"]
[PlyCount "37"]
[EventDate "2024.02.24"]
[EventType "swiss"]
[EventCountry "ROU"]
[SourceTitle "playchess.com"]
[Source "ChessBase"]
[SourceQuality "1"]
[TimeControl "40/5400+30:900+30"]

{[%evp 12,37,0,0,0,0,0,0,0,0,0,0,5,8,12,13,45,34,31,21,16,6,11,0,0,0,20,0]} 1. e4 {[%emt 0:00:47]} c5 {[%emt 0:00:10]} 2. Nf3 {[%emt 0:00:08]} d6 {[%emt 0:00:04]} 3. d4 {[%emt 0:00:07]} cxd4 {[%emt 0:00:04]} 4. Nxd4 {[%emt 0:00:18]} Nf6 {[%emt 0:00:06]} 5. Bd3 {[%emt 0:00:06]} Nc6 {[%emt 0:01:12]} 6. Nxc6 {[%emt 0:00:57]} bxc6 {[%emt 0:00:03]} 7. O-O {[%emt 0:00:09]} g6 {[%emt 0:00:11]} 8. b3 {[%emt 0:00:07]} Bg7 {[%emt 0:00:05][%cal Of6e4]} 9. Bb2 {[%emt 0:00:08]} O-O {[%emt 0:00:18]} 10. Nc3 {[%emt 0:00:06][%cal Bb1c3,Bc3a4,Ba4b2][%mdl 32]} Nd7 {[%emt 0:09:35]} 11. Na4 {[%emt 0:03:20]} Bxb2 {[%emt 0:00:57]} 12. Nxb2 {[%emt 0:00:08]} Qb6 {[%emt 0:00:40]} 13. Qd2 {[%emt 0:03:11]} Ne5 {[%emt 0:11:32]} 14. Be2 {[%emt 0:07:44]} Rb8 {[%emt 0:02:37]} 15. Kh1 {[%emt 0:08:23]} Qb4 {[%emt 0:03:02] The position is equal.} 16. Qe3 {[%emt 0:01:32][%cal Of2f4]} Qb6 {[%emt 0:02:37]} 17. Qd2 {[%emt 0:04:43]} Qb4 {[%emt 0:00:10]} 18. Qe3 {[%emt 0:00:39]} Qb6 {[%emt 0:00:07]} 19. Qd2 {[%emt 1:07:27] Weighted Error Value: White=0.02 (flawless) /Black=0.03 (flawless) .  Inaccurate:     	---       	Black=1      OK:         	White=6     	Black=8} 1/2-1/2

[Event "Romanian Championship 2024"]
[Site "Eforie Nord"]
[Date "2024.02.28"]
[Round "6.11"]
[White "Serban, Cristian-Stefan"]
[Black "Voiteanu, Gabriel"]
[Result "1-0"]
[ECO "D12"]
[WhiteElo "2309"]
[BlackElo "2151"]
[Annotator "TA"]
[PlyCount "77"]
[EventDate "2024.02.24"]
[EventType "swiss"]
[EventCountry "ROU"]
[SourceTitle "playchess.com"]
[Source "ChessBase"]
[SourceQuality "1"]
[TimeControl "40/5400+30:900+30"]

{[%evp 15,77,17,21,22,19,17,37,12,20,10,18,20,58,39,69,67,83,44,62,32,71,87,120,114,113,74,141,48,30,26,29,36,22,18,47,22,102,95,80,56,73,31,15,28,30,31,26,0,55,55,172,160,337,340,359,344,344,309,220,12,350,350,324,300]} 1. d4 {[%emt 0:04:15]} d5 {[%emt 0:04:53]} 2. c4 {[%emt 0:00:08]} c6 {[%emt 0:00:24]} 3. Nf3 {[%emt 0:00:08]} Nf6 {[%emt 0:00:14]} 4. e3 {[%emt 0:00:07]} Bf5 {[%emt 0:00:29]} 5. Nc3 {[%emt 0:00:10]} e6 {[%emt 0:00:07]} 6. Nh4 {[%emt 0:00:06]} Be4 {[%emt 0:00:28]} 7. f3 {[%emt 0:00:09]} Bg6 {[%emt 0:00:17]} 8. Qb3 {[%emt 0:00:11]} Qc7 {[%emt 0:00:27]} 9. Bd2 {[%emt 0:00:24]} Be7 {[%emt 0:00:47]} 10. Nxg6 {[%emt 0:00:07]} hxg6 {[%emt 0:00:06]} 11. O-O-O {[%emt 0:00:05] White is slightly better.} dxc4 {[%emt 0:02:38]} 12. Bxc4 {[%emt 0:00:09]} b5 {[%emt 0:01:01]} 13. Be2 {[%emt 0:00:38]} a5 {[%emt 0:02:54][%cal Oe8g8,Ba7a5,Ba5a4][%mdl 32]} 14. Kb1 {[%emt 0:03:41]} a4 {[%emt 0:06:18]} 15. Qc2 {[%emt 0:00:10][%cal Oc3b5]} Qb6 {[%emt 0:02:26]} 16. e4 {[%emt 0:05:48][%cal Be3e4,Be4e5][%mdl 32]} O-O {[%emt 0:03:23]} 17. Be3 {[%emt 0:13:14]} Qa5 {[%emt 0:02:11]} 18. e5 {[%emt 0:00:21]} Nd5 {[%emt 0:04:22]} 19. Nxd5 {[%emt 0:00:15]} cxd5 {[%emt 0:01:12]} 20. h4 {[%emt 0:01:50]} b4 {[%emt 0:06:11]} (20... a3 $142) 21. Qd2 {[%emt 0:08:36] White is more active.} (21. Qd3 $1 $16) 21... Nc6 $14 {[%emt 0:11:50]} 22. h5 {[%emt 0:06:18]} b3 {[%emt 0:01:24]} 23. a3 {[%emt 0:00:41]} Qxd2 {[%emt 0:05:18]} 24. Rxd2 {[%emt 0:00:09]} gxh5 {[%emt 0:01:20]} 25. Rxh5 {[%emt 0:00:12]} Na5 {[%emt 0:05:38]} (25... f5 $11) 26. Rd1 $1 $16 {[%emt 0:01:42]} Nc4 {[%emt 0:07:38] Dodges f4} 27. Rdh1 {[%emt 0:03:56][%csl Gh1][%cal Rh5h8]} f6 {[%emt 0:01:37]} 28. Bxc4 {[%emt 0:00:36]} dxc4 {[%emt 0:00:14] [#]} 29. d5 $1 $40 {[%emt 0:00:28][%cal Bd4d5,Bd5d6][%mdl 160] White is up to no good.} Kf7 {[%emt 0:03:42]} (29... exd5 $2 {too greedy.} 30. e6 g5 31. Bd4 $18 (31. Rh8+ Kg7 $18) (31. Rh8+ Kg7 $18)) 30. d6 {[%emt 0:00:23]} Bd8 {[%emt 0:00:17]} 31. f4 {[%emt 0:04:47]} fxe5 {[%emt 0:04:47]} ({Black should try} 31... Ra5 $11) 32. fxe5 $14 {[%emt 0:00:15] Hoping for Rf1+.} Kg6 {[%emt 0:03:52]} (32... Ke8 $1 $14) 33. R5h3 $1 $18 {[%emt 0:03:51]} Bg5 $2 {[%emt 0:09:28] [#]} (33... Ba5 $16 34. Rg3+ Kf5) 34. Rg3 $1 {[%emt 0:01:22]} ({Not} 34. Bxg5 Kxg5 35. Rh5+ Kg6 $14) 34... Rf5 {[%emt 0:00:04]} 35. Bxg5 {[%emt 0:00:14]} Rxg5 {[%emt 0:00:21]} 36. Rxg5+ {[%emt 0:00:03]} Kxg5 {[%emt 0:00:04] [#]} 37. Rf1 {[%emt 0:00:05]} ({White must play} 37. Kc1 $1 $18) 37... Kg6 $2 {[%emt 0:07:06][%mdl 8192]} (37... Rc8 $1 $11 {and Black stays safe.}) 38. Kc1 {[%emt 0:00:47] Kd2 is the strong threat.} Ra5 {[%emt 0:00:34]} 39. Rd1 {[%emt 0:02:30] Prevents Rd5.   Weighted Error Value: White=0.22 (precise) /Black=0.49.  Loses game:     	---       	Black=2      Missed win:     	White=1     	---        Mistake:       	White=1     	Black=4      Inaccurate:     	White=5     	Black=5      OK:         	White=8     	Black=10     Best:        	White=2     	Black=1      Strong:       	White=3     	---} 1-0

[Event "Romanian Championship 2024"]
[Site "Eforie Nord"]
[Date "2024.02.28"]
[Round "6.12"]
[White "Tudor, Henry Edward"]
[Black "Gales, Randi-Ioan"]
[Result "1-0"]
[ECO "A13"]
[WhiteElo "2239"]
[BlackElo "2062"]
[Annotator "TA"]
[PlyCount "33"]
[EventDate "2024.02.24"]
[EventType "swiss"]
[EventCountry "ROU"]
[SourceTitle "playchess.com"]
[Source "ChessBase"]
[SourceQuality "1"]
[TimeControl "40/5400+30:900+30"]

{[%evp 9,33,-18,-21,-22,-20,-29,2,17,0,4,56,56,95,79,80,70,168,177,1633,1730,29990,29991,29994,29995,29995,29996]} 1. Nf3 {[%emt 0:00:57]} d5 {[%emt 0:00:05]} 2. b3 {[%emt 0:01:18]} Nf6 {[%emt 0:00:07]} 3. Bb2 {[%emt 0:00:19]} e6 {[%emt 0:00:18]} 4. c4 {[%emt 0:01:54]} Be7 {[%emt 0:00:11]} 5. g4 {[%emt 0:12:58]} Nxg4 {[%emt 0:25:18] [#] White must now prevent ...Bh4.} 6. Rg1 $1 {[%emt 0:00:52]} Bf6 {[%emt 0:01:23]} 7. d4 {[%emt 0:01:00]} h5 {[%emt 0:03:55]} 8. h3 {[%emt 0:05:14] The position is equal.} Nh6 {[%emt 0:00:29]} 9. Nc3 {[%emt 0:20:22]} c5 {[%emt 0:18:35]} 10. dxc5 {[%emt 0:12:10][%cal Rc4d5]} Qa5 {[%emt 0:01:11]} 11. Qd2 {[%emt 0:05:08]} dxc4 {[%emt 0:01:15]} 12. e4 {[%emt 0:00:56]} Nc6 {[%emt 0:03:05]} (12... Bd7 $14) 13. Bxc4 $18 {[%emt 0:06:37]} O-O $2 {[%emt 0:15:24]} (13... Bd7) 14. Qxh6 {[%emt 0:01:02]} Bxc3+ {[%emt 0:00:30] [#]} 15. Kf1 $1 {[%emt 0:27:13] White mates.} ({But not} 15. Bxc3 $2 Qxc3+ 16. Ke2 Qxa1 17. Qxh5 Qb2+ (17... Qxa2+ $2 18. Ke3 $19) 18. Kf1 Qb1+ (18... Qxa2 $2 {is the wrong capture.} 19. Ng5 $18) 19. Ne1 Rd8 $19 (19... Qxe4 $2 {loses.} 20. Bd3 $18)) 15... Bxb2 {[%emt 0:26:14]} 16. e5 $1 {[%emt 0:00:00]} Bxe5 {[%emt 0:00:00]} 17. Nxe5 {[%emt 0:01:00] Black did not feel at home in the position after the opening.   Weighted Error Value: White=0.02 (flawless) /Black=0.72.  Mistake:       	---       	Black=3      Inaccurate:     	---       	Black=3      OK:         	White=3     	Black=3      Best:        	White=2     	---} 1-0

[Event "Romanian Championship 2024"]
[Site "Eforie Nord"]
[Date "2024.02.28"]
[Round "6.13"]
[White "Secheres, Adrian-Simion"]
[Black "Sava, Robert-Gabriel"]
[Result "1-0"]
[ECO "E32"]
[WhiteElo "2371"]
[BlackElo "2053"]
[Annotator "TA"]
[PlyCount "73"]
[EventDate "2024.02.24"]
[EventType "swiss"]
[EventCountry "ROU"]
[SourceTitle "playchess.com"]
[Source "ChessBase"]
[SourceQuality "1"]
[TimeControl "40/5400+30:900+30"]

{[%evp 9,73,33,31,26,14,18,18,19,11,13,14,11,16,0,18,-6,71,58,89,8,35,26,172,188,204,184,159,169,220,218,225,217,492,397,389,268,227,173,167,0,554,547,539,530,747,910,1243,1270,1075,970,2586,1507,1343,1316,1272,1502,29993,29994,29994,29993,29994,29995,29995,29993,29993,29994]} 1. d4 {[%emt 0:00:05]} Nf6 {[%emt 0:00:13]} 2. c4 {[%emt 0:00:18]} e6 {[%emt 0:00:11]} 3. Nc3 {[%emt 0:00:27]} Bb4 {[%emt 0:00:20]} 4. Qc2 {[%emt 0:00:20]} b6 {[%emt 0:00:47]} 5. e4 {[%emt 0:00:31][%cal Be2e4,Be4d5][%mdl 32]} c5 {[%emt 0:00:30]} 6. d5 {[%emt 0:00:21]} Qe7 {[%emt 0:00:39]} 7. Nge2 {[%emt 0:00:56]} exd5 {[%emt 0:00:57]} 8. exd5 {[%emt 0:00:16] The position is equal.} O-O {[%emt 0:02:53]} 9. Bd2 {[%emt 0:00:37]} d6 {[%emt 0:00:46]} 10. f3 {[%emt 0:01:23][%cal Bf2f3,Bf3f4][%mdl 32]} Nbd7 {[%emt 0:01:46] White must now prevent ...Ne5.} 11. O-O-O {[%emt 0:01:32]} Ne5 {[%emt 0:03:20]} 12. Ng3 {[%emt 0:02:41]} a6 {[%emt 0:04:18]} (12... Qd8 $11 {keeps the balance.}) 13. f4 $16 {[%emt 0:02:19]} Ng6 {[%emt 0:02:29] [#]} 14. Re1 {[%emt 0:08:17]} (14. h4 $1 $16) 14... Qc7 {[%emt 0:03:56][%cal Ob6b5]} 15. h4 {[%emt 0:02:25]} h5 {[%emt 0:21:45]} (15... h6 $11 {and Black has nothing to worry.}) 16. Be2 $18 {[%emt 0:06:00]} Bg4 {[%emt 0:22:06]} 17. Bxg4 {[%emt 0:02:07]} Nxg4 {[%emt 0:10:01]} 18. Nxh5 {[%emt 0:01:42] Threatens to win with a3.} b5 {[%emt 0:03:33]} (18... Qd7 $142 19. Ng3 Bxc3 20. Qxc3 Ne7) 19. Qf5 {[%emt 0:07:08]} (19. cxb5 $6 axb5 20. Qf5 (20. Nxb5 Qd7 $15) 20... Nf2 $16) 19... Nf2 {[%emt 0:11:05]} 20. Rhf1 {[%emt 0:03:13]} Nxh4 $2 {[%emt 0:00:57]} (20... Qc8 21. Qc2 Ng4) 21. Qc2 {[%emt 0:07:21]} Ng4 {[%emt 0:00:40]} 22. Rh1 {[%emt 0:00:29]} Ng6 {[%emt 0:00:58]} 23. Qf5 {[%emt 0:03:29]} (23. cxb5 axb5 24. a3 (24. Nxb5 Qb7 $11) 24... Qd7 $16) 23... Nf2 {[%emt 0:01:39]} 24. Rhf1 $2 $40 {[%emt 0:01:50][%mdl 128] White mounts an attack.} (24. Rh2 bxc4 25. Nf6+ gxf6 26. Qh5) 24... Nh4 $1 {[%emt 0:00:12]} 25. Qg5 {[%emt 0:03:42][%csl Gh5][%cal Rg5g7]} Nd3+ {[%emt 0:00:11]} 26. Kb1 {[%emt 0:00:26][%csl Gh5][%cal Rg5g7]} Ng6 {[%emt 0:00:05] [#]} 27. Ne4 $1 {[%emt 0:02:19][%cal Oe4f6] Nef6+! would kill now.} f5 {[%emt 0:02:02]} (27... Qd8 28. Nef6+) 28. Nef6+ {[%emt 0:03:42]} Rxf6 {[%emt 0:00:49]} 29. Nxf6+ {[%emt 0:00:06]} Kf7 {[%emt 0:00:29]} 30. Qxf5 {[%emt 0:03:54] Intending Qe6+ and mate.} gxf6 {[%emt 0:00:42]} 31. Re6 {[%emt 0:00:15][%cal Be1e6,Be6e3,Be3g3][%mdl 32]} Qd8 {[%emt 0:00:38]} 32. Rh1 {[%emt 0:04:24] White threatens Rh7+ and mate.} Nf8 {[%emt 0:01:05]} 33. Qh5+ {[%emt 0:00:38] White mates.} Kg7 {[%emt 0:00:05]} 34. Re3 {[%emt 0:00:55]} Nxf4 {[%emt 0:00:38]} 35. Rg3+ {[%emt 0:00:34]} N4g6 {[%emt 0:00:07]} 36. Bh6+ {[%emt 0:00:42]} Kf7 {[%emt 0:00:15]} 37. Bxf8 {[%emt 0:00:06] Weighted Error Value: White=0.25 (precise) /Black=0.48.  Mistake:       	White=2     	Black=4      Inaccurate:     	White=1     	Black=4      OK:         	White=10    	Black=10     Best:        	White=1     	Black=1      Strong:       	---       	Black=1} 1-0

[Event "Romanian Championship 2024"]
[Site "Eforie Nord"]
[Date "2024.02.28"]
[Round "6.14"]
[White "Ciocani, Iosif"]
[Black "Stoleriu, George"]
[Result "0-1"]
[ECO "C02"]
[WhiteElo "2063"]
[BlackElo "2391"]
[Annotator "RC"]
[PlyCount "100"]
[EventDate "2024.02.24"]
[EventType "swiss"]
[EventCountry "ROU"]
[SourceTitle "playchess.com"]
[Source "ChessBase"]
[SourceQuality "1"]
[TimeControl "40/5400+30:900+30"]

1. e4 {[%emt 0:02:28]} e6 {[%emt 0:00:05]} 2. d4 {[%emt 0:00:05]} d5 {[%emt 0:00:03]} 3. e5 {[%emt 0:00:05]} c5 {[%emt 0:00:34]} 4. c3 {[%emt 0:00:06]} Nc6 {[%emt 0:00:04]} 5. Nf3 {[%emt 0:00:07]} Qb6 {[%emt 0:00:02]} 6. Be2 {[%emt 0:00:10]} cxd4 {[%emt 0:00:06]} 7. cxd4 {[%emt 0:00:05]} Nh6 {[%emt 0:00:03]} 8. Bxh6 {[%emt 0:01:34]} Qxb2 {[%emt 0:00:23]} 9. Nbd2 {[%emt 0:00:13]} gxh6 {[%emt 0:00:04]} 10. O-O {[%emt 0:01:17]} Nxd4 {[%emt 0:00:03]} 11. Rb1 {[%emt 0:00:20]} Nxe2+ {[%emt 0:00:10]} 12. Qxe2 {[%emt 0:00:05]} Qa3 {[%emt 0:00:02]} 13. Nd4 {[%emt 0:06:45]} a6 {[%emt 0:00:03]} 14. Rfc1 {[%emt 0:03:01]} Bd7 {[%emt 0:00:04]} 15. Rc7 {[%emt 0:13:18]} Rc8 {[%emt 0:00:05]} 16. Rcxb7 {[%emt 0:09:42]} Bg7 {[%emt 0:05:56]} 17. Nf1 {[%emt 0:21:18]} Qc3 {[%emt 0:22:53]} 18. Rd1 {[%emt 0:03:57]} Rc7 {[%emt 0:06:56]} 19. Rb3 {[%emt 0:07:17]} Qc4 {[%emt 0:00:59]} 20. Qh5 {[%emt 0:01:28]} O-O {[%emt 0:07:18]} 21. Ne3 {[%emt 0:05:23]} Qc5 {[%emt 0:02:10]} 22. Ng4 {[%emt 0:21:02]} Kh8 {[%emt 0:04:32]} 23. Rbd3 {[%emt 0:01:16]} Qc1 {[%emt 0:06:35]} 24. h4 {[%emt 0:00:47]} Qf4 {[%emt 0:02:38]} 25. Rf3 {[%emt 0:00:32]} Qe4 {[%emt 0:00:02]} 26. Nxh6 {[%emt 0:00:33]} Ba4 {[%emt 0:00:39]} 27. Nb3 {[%emt 0:00:34]} Qxe5 {[%emt 0:00:43]} 28. Nxf7+ {[%emt 0:00:31]} Rcxf7 {[%emt 0:01:37]} 29. Qxf7 {[%emt 0:00:09]} Rxf7 {[%emt 0:40:11]} 30. Rxf7 {[%emt 0:00:10]} Qh5 {[%emt 0:00:00]} 31. Rf3 {[%emt 0:00:09]} Qxh4 {[%emt 0:00:00]} 32. Rc1 {[%emt 0:00:05]} Be5 {[%emt 0:00:00]} 33. g3 {[%emt 0:01:12]} Qh5 {[%emt 0:00:00]} 34. Re3 {[%emt 0:00:15]} d4 {[%emt 0:00:00]} 35. Re4 {[%emt 0:00:12]} Bxb3 {[%emt 0:00:00]} 36. axb3 {[%emt 0:00:07]} Qf5 {[%emt 0:00:00]} 37. Rce1 {[%emt 0:00:31]} d3 {[%emt 0:00:00]} 38. Rxe5 {[%emt 0:00:05]} d2 {[%emt 0:00:00]} 39. Rxe6 {[%emt 0:00:06]} Qxe6 {[%emt 0:00:00]} 40. Rxe6 {[%emt 0:00:00]} d1=Q+ {[%emt 0:00:00]} 41. Kh2 {[%emt 0:00:13]} Qf1 {[%emt 0:00:00]} 42. Rf6 {[%emt 0:00:41]} Kg7 {[%emt 0:00:00]} 43. Rf4 {[%emt 0:00:45]} a5 {[%emt 0:00:00]} 44. Rf5 {[%emt 0:01:07]} Kg6 {[%emt 0:00:00]} 45. Rxa5 {[%emt 0:00:09]} Qxf2+ {[%emt 0:00:00]} 46. Kh3 {[%emt 0:00:03]} Qe1 {[%emt 0:00:00]} 47. Ra4 {[%emt 0:01:12]} Qh1+ {[%emt 0:00:00]} 48. Kg4 {[%emt 0:00:04]} h5+ {[%emt 0:00:00]} 49. Kf4 {[%emt 0:00:04]} Qf1+ {[%emt 0:00:00]} 50. Ke3 {[%emt 0:00:45]} Qg2 {[%emt 0:00:00]} 0-1

[Event "Romanian Championship 2024"]
[Site "Eforie Nord"]
[Date "2024.02.28"]
[Round "6.15"]
[White "Negrean, Andrei"]
[Black "Ciorgovean, Iustin"]
[Result "1/2-1/2"]
[ECO "E62"]
[WhiteElo "1990"]
[BlackElo "2310"]
[Annotator "TA"]
[PlyCount "132"]
[EventDate "2024.02.24"]
[EventType "swiss"]
[EventCountry "ROU"]
[SourceTitle "playchess.com"]
[Source "ChessBase"]
[SourceQuality "1"]
[TimeControl "40/5400+30:900+30"]

{[%evp 22,132,37,16,44,-18,-16,-7,0,0,0,-18,-9,-7,0,0,-7,-3,0,0,14,7,8,0,0,0,10,18,66,66,49,41,34,-9,0,-178,-186,-195,-206,-397,-368,-401,-399,-387,-364,-327,-79,-173,-135,-112,-70,-69,-65,-65,-66,-70,-70,-84,-92,-91,-60,-60,-60,-114,-87,-86,0,-74,0,-72,-11,-11,-13,-166,-170,-165,-133,-158,-143,-120,-140,-153,0,0,0,0,0,0,0,0,0,0,0,0,0,0,0,0,0,0,0,0,0,0,0,0,0,0,0,0,0,0,0]} 1. Nf3 {[%emt 0:00:03]} Nf6 {[%emt 0:00:07]} 2. c4 {[%emt 0:00:12]} g6 {[%emt 0:00:04]} 3. g3 {[%emt 0:00:10]} Bg7 {[%emt 0:00:04]} 4. Bg2 {[%emt 0:00:09]} O-O {[%emt 0:00:06]} 5. O-O {[%emt 0:00:06]} d6 {[%emt 0:00:03]} 6. d4 {[%emt 0:00:16]} Bf5 {[%emt 0:00:04]} 7. b3 {[%emt 0:11:00]} c6 {[%emt 0:02:05]} 8. Bb2 {[%emt 0:00:38]} a5 {[%emt 0:00:05]} 9. Nc3 {[%emt 0:08:12]} Ne4 {[%emt 0:01:04]} 10. Rc1 {[%emt 0:09:46]} Nxc3 {[%emt 0:02:00]} 11. Bxc3 {[%emt 0:00:08]} Be4 {[%emt 0:03:30]} 12. e3 {[%emt 0:06:36]} b5 {[%emt 0:10:27]} 13. Qe2 {[%emt 0:14:29]} (13. Bh3 $14) 13... b4 $11 {[%emt 0:03:14]} 14. Bb2 {[%emt 0:05:28]} Qc8 {[%emt 0:07:27]} 15. Rfd1 {[%emt 0:09:28]} a4 {[%emt 0:06:48]} 16. Bf1 {[%emt 0:03:39]} c5 {[%emt 0:07:39]} 17. Ng5 {[%emt 0:05:19]} Bb7 {[%emt 0:01:25]} 18. d5 {[%emt 0:02:49]} Bxb2 {[%emt 0:07:29]} 19. Qxb2 {[%emt 0:00:04]} Qf5 {[%emt 0:00:12]} 20. f4 {[%emt 0:03:42]} Nd7 {[%emt 0:11:46]} 21. Bh3 {[%emt 0:10:52]} Qf6 {[%emt 0:00:12]} 22. Qe2 {[%emt 0:00:15]} axb3 {[%emt 0:04:52]} 23. axb3 {[%emt 0:02:36]} Nb6 {[%emt 0:00:17]} 24. e4 {[%emt 0:00:21]} Ra3 {[%emt 0:00:30]} (24... Bc8 $11 {scheint genauer.}) 25. e5 $14 {[%emt 0:02:21]} Qg7 {[%emt 0:02:05]} (25... dxe5 26. Ne4 Qg7 27. Nxc5 $16) 26. exd6 {[%emt 0:01:00]} (26. Rb1 {vereinfacht} Bc8 27. Bxc8 Rxc8 28. exd6 exd6 29. Rf1) 26... exd6 {[%emt 0:29:55]} 27. Qe7 {[%emt 0:00:39] [#]} (27. Ne4 {vereinfacht} Rd8 28. Rb1 Bc8 29. Bxc8 Nxc8 30. g4) 27... Ra2 $1 {[%emt 0:00:00][%cal Og7b2]} 28. Nf3 $2 {[%emt 0:03:35] [#]} (28. Qxb7 {ist ein Selbstmatt.} Qb2) (28. Nxf7 $11 {und Weiss muss sich keine Sorgen machen.} Bc8 (28... Qxf7 $2 29. Be6 $18) 29. Be6 (29. Qxd6 $2 Rxf7 30. g4 Qb2 $19) 29... Bxe6 30. dxe6) (28. Ne6 fxe6) 28... Qb2 $1 $19 {[%emt 0:00:00]} 29. Qe3 {[%emt 0:00:23] Pariert Qf2+.} Bc8 {[%emt 0:00:00]} 30. Rb1 $2 {[%emt 0:00:26]} (30. Bf1) 30... Qc3 {[%emt 0:00:00]} 31. Rd3 {[%emt 0:00:45]} Qc2 {[%emt 0:00:00][%cal Oc8h3]} 32. Rc1 {[%emt 0:00:07]} Qb2 {[%emt 0:00:00]} 33. Bf1 {[%emt 0:00:15]} Bg4 $2 {[%emt 0:00:00]} (33... Bf5 $19 {bietet bessere Gewinnchancen.} 34. Rdd1 Kg7 (34... Bc2 $2 35. Re1 $19)) 34. Qd2 {[%emt 0:00:26]} (34. Rcd1 $17) 34... Qxd2 {[%emt 0:00:00]} 35. Rxd2 {[%emt 0:00:08]} Rfa8 {[%emt 0:00:00]} 36. Rxa2 $1 {[%emt 0:00:22]} Rxa2 {[%emt 0:00:00]} 37. Ng5 {[%emt 0:00:30]} Bf5 {[%emt 0:00:00] Gegen Ne4 gerichtet.} 38. Re1 {[%emt 0:00:59]} h6 {[%emt 0:00:00]} 39. Ne4 {[%emt 0:00:27]} Bxe4 {[%emt 0:00:00]} 40. Rxe4 $17 {[%emt 0:00:00][%mdl 4096] Endspiel. KRB-KRN} Kf8 {[%emt 0:00:00] Pariert Re8+. ...Ra3 wäre nun fies.} 41. Re2 {[%emt 0:04:46]} Ra1 {[%emt 0:00:00]} 42. Rb2 {[%emt 0:02:19]} (42. Kf2 $15) 42... g5 {[%emt 0:00:00]} 43. Kg2 {[%emt 0:02:02]} Nc8 {[%emt 0:00:00]} (43... Kg7 $17 44. Be2 gxf4) 44. Bd3 {[%emt 0:03:22] [#]} (44. fxg5 $1 $11 {hält das Gleichgewicht.} hxg5 45. Kf2) 44... Ne7 {[%emt 0:00:00]} (44... gxf4 $1 $17 45. gxf4 Kg7) 45. Bb1 {[%emt 0:00:32]} (45. fxg5 $11 hxg5 46. Re2) 45... Kg7 {[%emt 0:00:23]} ({Vorzuziehen ist} 45... g4 $17 46. h3 h5) 46. Kf3 $11 {[%emt 0:00:59]} gxf4 {[%emt 0:00:22]} 47. gxf4 {[%emt 0:00:30]} (47. Kxf4 $11 {und Weiss steht sicher.} Ng8 48. h3) 47... h5 $19 {[%emt 0:03:05]} 48. Kg3 {[%emt 0:01:40]} Kf6 {[%emt 0:02:40]} 49. Kh4 {[%emt 0:00:46] [#]} Nf5+ $1 {[%emt 0:00:43]} 50. Bxf5 {[%emt 0:01:02]} Kxf5 {[%emt 0:00:01]} 51. Kxh5 $17 {[%emt 0:00:12] KR-KR} Rf1 $2 {[%emt 0:02:06]} (51... Kxf4 $17 {Droht stark ...Ke5.} 52. Rf2+ Ke4) 52. h4 $11 {[%emt 0:00:50] Die Stellung ist ausgeglichen.} Kxf4 {[%emt 0:01:25] Weiss muss nun ...Rg1 beachten.} 53. Kh6 $1 {[%emt 0:00:28]} Ke3 {[%emt 0:01:15] ...Rg1 ist eine echte Drohung.} 54. Kg7 {[%emt 0:01:14]} Rh1 {[%emt 0:03:00] Verhindert Rh2} 55. Kxf7 {[%emt 0:00:13]} Rxh4 {[%emt 0:00:03]} 56. Ke7 $1 {[%emt 0:00:54]} Kd4 {[%emt 0:02:02]} 57. Rg2 {[%emt 0:01:38]} Rh6 {[%emt 0:01:19]} 58. Rg3 {[%emt 0:00:11]} Ke4 {[%emt 0:00:46]} 59. Kd7 {[%emt 0:00:18]} Kf4 {[%emt 0:02:22]} 60. Rg1 {[%emt 0:00:08]} Ke5 {[%emt 0:00:36]} 61. Kc6 {[%emt 0:01:27]} Rh3 {[%emt 0:01:01]} 62. Rg5+ {[%emt 0:01:14]} Kf6 $1 {[%emt 0:03:23]} 63. Rg8 {[%emt 0:00:18]} (63. Rg1 $5 Ke5 $8 64. Rg5+ Kf6 65. Rg1 Ke5 $11) 63... Ke5 {[%emt 0:00:12]} 64. Rg5+ {[%emt 0:00:13]} Kf6 $1 {[%emt 0:00:05]} 65. Rg8 {[%emt 0:00:01]} (65. Rg1 $5 Ke5 $8 66. Re1+ Kd4 67. Rd1+ (67. Kxd6 Rxb3 68. Kc6 Rd3 $11) 67... Ke5 68. Re1+ Kd4 69. Rd1+ (69. Kxd6 Rxb3 70. Kc6 Rd3 $11) 69... Ke5 70. Rb1 $11) 65... Ke5 {[%emt 0:00:18]} 66. Rg5+ {[%emt 0:00:59]} Kf6 $1 {Gewichteter Fehlerwert: Weiß=0.26 (präzise) /Schwarz=0.22 (präzise) .  Verlustzug:     	Weiß=1     	---        Gewinn verpasst:   	---       	Schwarz=1     Fehler:       	Weiß=7     	Schwarz=5     Ungenau:       	Weiß=1     	Schwarz=2     OK:         	Weiß=20    	Schwarz=19    Bester:       	Weiß=4     	Schwarz=4     Stark:        	Weiß=3     	Schwarz=5} 1/2-1/2